Workbook

Sheet Results13of18
B1: WALLASEY ATHLETIC CLUB GRAND PRIX 2025-2026 | E1: MT Royden Park 02/09/25 | F1: MT Wallasey 09/09/25 | G1: MT WCP 16/09/25 | H1: MT Arrowe Park 23/09/25 | I1: BL 1 Tattenhall 28/09/25 | J1: LD Race 1 Sherdley Park 11/10/25 | K1: BL 2 Delamere 16/11/25 | L1: L&D Race 2 Sefton Park 22/11/25 | M1: BL 3 Trac Mon 07/12/25 | N1: Merseyside CC Sherdley Park 13/12/25 | O1: L&D Race 3 Arrowe Park 10/01/26 | P1: Northern CC Pontefract 22/01/26 | Q1: BL 4 Birkenhead Park 01/02/26 | R1: L&D Champs Clarke's Garden 08/02/26 | S1: National Sedgefield 21/02/26 | T1: BL 5 tbc 01/03/26 | U1: BL 6 New Brighton 22/03/26 | V1: Total
A2: MEN | B2: Division 1 | C2: 1 | D2: BOWERS, Chris | E2: 23 | F2: 23 | G2: 26 | H2: 26 | I2: 20 | J2: 29 | K2: 0 | L2: 0 | M2: 0 | N2: 0 | O2: 0 | P2: 0 | Q2: 0 | R2: 0 | S2: 0 | T2: 0 | U2: 0 | V2: =SUM(E2:Q2) -> 147
C3: 2 | D3: JONES, Mike T | E3: 28 | F3: 28 | G3: 29 | H3: 28 | I3: 27 | J3: 0 | K3: 0 | L3: 0 | M3: 0 | N3: 0 | O3: 0 | P3: 0 | Q3: 0 | R3: 0 | S3: 0 | T3: 0 | U3: 0 | V3: =SUM(E3:Q3) -> 140
C4: 3 | D4: ROBSON, Michael | E4: 25 | F4: 25 | G4: 28 | H4: 30 | I4: 24 | J4: 0 | K4: 0 | L4: 0 | M4: 0 | N4: 0 | O4: 0 | P4: 0 | Q4: 0 | R4: 0 | S4: 0 | T4: 0 | U4: 0 | V4: =SUM(E4:Q4) -> 132
C5: 4 | D5: BARHAM, Pete | E5: 19 | F5: 20 | G5: 23 | H5: 23 | I5: 17 | J5: 28 | K5: 0 | L5: 0 | M5: 0 | N5: 0 | O5: 0 | P5: 0 | Q5: 0 | R5: 0 | S5: 0 | T5: 0 | U5: 0 | V5: =SUM(E5:Q5) -> 130
C6: 5 | D6: DABNER, Phil | E6: 24 | F6: 24 | G6: 27 | H6: 27 | I6: 21 | J6: 0 | K6: 0 | L6: 0 | M6: 0 | N6: 0 | O6: 0 | P6: 0 | Q6: 0 | R6: 0 | S6: 0 | T6: 0 | U6: 0 | V6: =SUM(E6:Q6) -> 123
C7: 6 | D7: CHADWICK, Oliver | E7: 30 | F7: 30 | G7: 30 | H7: 0 | I7: 30 | J7: 0 | K7: 0 | L7: 0 | M7: 0 | N7: 0 | O7: 0 | P7: 0 | Q7: 0 | R7: 0 | S7: 0 | T7: 0 | U7: 0 | V7: =SUM(E7:Q7) -> 120
C8: 7 | D8: SEAL, Brian | E8: 20 | F8: 22 | G8: 25 | H8: 25 | I8: 19 | J8: 0 | K8: 0 | L8: 0 | M8: 0 | N8: 0 | O8: 0 | P8: 0 | Q8: 0 | R8: 0 | S8: 0 | T8: 0 | U8: 0 | V8: =SUM(E8:Q8) -> 111
C9: 8 | D9: WHITWORTH, Rab | E9: 21 | F9: 17 | G9: 24 | H9: 24 | I9: 18 | J9: 0 | K9: 0 | L9: 0 | M9: 0 | N9: 0 | O9: 0 | P9: 0 | Q9: 0 | R9: 0 | S9: 0 | T9: 0 | U9: 0 | V9: =SUM(E9:Q9) -> 104
C10: 9 | D10: NORTON, Steve | E10: 17 | F10: 18 | G10: 21 | H10: 21 | I10: 16 | J10: 0 | K10: 0 | L10: 0 | M10: 0 | N10: 0 | O10: 0 | P10: 0 | Q10: 0 | R10: 0 | S10: 0 | T10: 0 | U10: 0 | V10: =SUM(E10:Q10) -> 93
C11: 10 | D11: KENNEDY, Alan | E11: 29 | F11: 29 | G11: 0 | H11: 0 | I11: 28 | J11: 0 | K11: 0 | L11: 0 | M11: 0 | N11: 0 | O11: 0 | P11: 0 | Q11: 0 | R11: 0 | S11: 0 | T11: 0 | U11: 0 | V11: =SUM(E11:Q11) -> 86
C12: 11 | D12: PEARSE, Rob | E12: 27 | F12: 27 | G12: 0 | H12: 0 | I12: 26 | J12: 0 | K12: 0 | L12: 0 | M12: 0 | N12: 0 | O12: 0 | P12: 0 | Q12: 0 | R12: 0 | S12: 0 | T12: 0 | U12: 0 | V12: =SUM(E12:Q12) -> 80
C13: 12 | D13: LESLIE, Steven | E13: 0 | F13: 26 | G13: 0 | H13: 29 | I13: 25 | J13: 0 | K13: 0 | L13: 0 | M13: 0 | N13: 0 | O13: 0 | P13: 0 | Q13: 0 | R13: 0 | S13: 0 | T13: 0 | U13: 0 | V13: =SUM(E13:Q13) -> 80
C14: 13 | D14: MCARDLE, Derek | E14: 0 | F14: 19 | G14: 22 | H14: 22 | I14: 15 | J14: 0 | K14: 0 | L14: 0 | M14: 0 | N14: 0 | O14: 0 | P14: 0 | Q14: 0 | R14: 0 | S14: 0 | T14: 0 | U14: 0 | V14: =SUM(E14:Q14) -> 78
C15: 14 | D15: BIRD, Phil | E15: 16 | F15: 15 | G15: 19 | H15: 20 | I15: 0 | J15: 0 | K15: 0 | L15: 0 | M15: 0 | N15: 0 | O15: 0 | P15: 0 | Q15: 0 | R15: 0 | S15: 0 | T15: 0 | U15: 0 | V15: =SUM(E15:Q15) -> 70
C16: 15 | D16: GILLIES, George | E16: 0 | F16: 0 | G16: 0 | H16: 0 | I16: 29 | J16: 30 | K16: 0 | L16: 0 | M16: 0 | N16: 0 | O16: 0 | P16: 0 | Q16: 0 | R16: 0 | S16: 0 | T16: 0 | U16: 0 | V16: =SUM(E16:Q16) -> 59
C17: 16 | D17: COLE, Steve | E17: 18 | F17: 16 | G17: 20 | H17: 0 | I17: 0 | J17: 0 | K17: 0 | L17: 0 | M17: 0 | N17: 0 | O17: 0 | P17: 0 | Q17: 0 | R17: 0 | S17: 0 | T17: 0 | U17: 0 | V17: =SUM(E17:Q17) -> 54
C18: 17 | D18: EVES, Scott | E18: 26 | F18: 0 | G18: 0 | H18: 0 | I18: 22 | J18: 0 | K18: 0 | L18: 0 | M18: 0 | N18: 0 | O18: 0 | P18: 0 | Q18: 0 | R18: 0 | S18: 0 | T18: 0 | U18: 0 | V18: =SUM(E18:Q18) -> 48
C19: 18 | D19: CUTHBERT, Phil | E19: 22 | F19: 21 | G19: 0 | H19: 0 | I19: 0 | J19: 0 | K19: 0 | L19: 0 | M19: 0 | N19: 0 | O19: 0 | P19: 0 | Q19: 0 | R19: 0 | S19: 0 | T19: 0 | U19: 0 | V19: =SUM(E19:Q19) -> 43
C20: 19 | D20: JONES, Christopher | E20: 0 | F20: 0 | G20: 0 | H20: 0 | I20: 23 | J20: 0 | K20: 0 | L20: 0 | M20: 0 | N20: 0 | O20: 0 | P20: 0 | Q20: 0 | R20: 0 | S20: 0 | T20: 0 | U20: 0 | V20: =SUM(E20:Q20) -> 23
B21: Division 2 | C21: 1 | D21: GRIFFITHS, Paul | E21: 26 | F21: 28 | G21: 27 | H21: 26 | I21: 26 | J21: 30 | K21: 0 | L21: 0 | M21: 0 | N21: 0 | O21: 0 | P21: 0 | Q21: 0 | R21: 0 | S21: 0 | T21: 0 | U21: 0 | V21: =SUM(E21:Q21) -> 163
C22: 2 | D22: HOARE, Daniel | E22: 25 | F22: 25 | G22: 26 | H22: 28 | I22: 25 | J22: 29 | K22: 0 | L22: 0 | M22: 0 | N22: 0 | O22: 0 | P22: 0 | Q22: 0 | R22: 0 | S22: 0 | T22: 0 | U22: 0 | V22: =SUM(E22:Q22) -> 158
C23: 3 | D23: SALMON, Kieran | E23: 27 | F23: 26 | G23: 29 | H23: 30 | I23: 28 | J23: 0 | K23: 0 | L23: 0 | M23: 0 | N23: 0 | O23: 0 | P23: 0 | Q23: 0 | R23: 0 | S23: 0 | T23: 0 | U23: 0 | V23: =SUM(E23:Q23) -> 140
C24: 4 | D24: SAUNDERS, Paul | E24: 19 | F24: 22 | G24: 22 | H24: 24 | I24: 23 | J24: 28 | K24: 0 | L24: 0 | M24: 0 | N24: 0 | O24: 0 | P24: 0 | Q24: 0 | R24: 0 | S24: 0 | T24: 0 | U24: 0 | V24: =SUM(E24:Q24) -> 138
C25: 5 | D25: WOODS, Sam | E25: 28 | F25: 27 | G25: 28 | H25: 27 | I25: 27 | J25: 0 | K25: 0 | L25: 0 | M25: 0 | N25: 0 | O25: 0 | P25: 0 | Q25: 0 | R25: 0 | S25: 0 | T25: 0 | U25: 0 | V25: =SUM(E25:Q25) -> 137
C26: 6 | D26: DYSON, Mike | E26: 20 | F26: 23 | G26: 25 | H26: 25 | I26: 24 | J26: 0 | K26: 0 | L26: 0 | M26: 0 | N26: 0 | O26: 0 | P26: 0 | Q26: 0 | R26: 0 | S26: 0 | T26: 0 | U26: 0 | V26: =SUM(E26:Q26) -> 117
C27: 7 | D27: WEBSTER, Richard | E27: 29 | F27: 29 | G27: 30 | H27: 29 | I27: 0 | J27: 0 | K27: 0 | L27: 0 | M27: 0 | N27: 0 | O27: 0 | P27: 0 | Q27: 0 | R27: 0 | S27: 0 | T27: 0 | U27: 0 | V27: =SUM(E27:Q27) -> 117
C28: 8 | D28: HOLMES, Tony | E28: 17 | F28: 19 | G28: 18 | H28: 18 | I28: 18 | J28: 0 | K28: 0 | L28: 0 | M28: 0 | N28: 0 | O28: 0 | P28: 0 | Q28: 0 | R28: 0 | S28: 0 | T28: 0 | U28: 0 | V28: =SUM(E28:Q28) -> 90
C29: 9 | D29: WARD, Simon | E29: 21 | F29: 21 | G29: 23 | H29: 23 | I29: 0 | J29: 0 | K29: 0 | L29: 0 | M29: 0 | N29: 0 | O29: 0 | P29: 0 | Q29: 0 | R29: 0 | S29: 0 | T29: 0 | U29: 0 | V29: =SUM(E29:Q29) -> 88
C30: 10 | D30: BACKINSELL, Jim | E30: 0 | F30: 20 | G30: 21 | H30: 21 | I30: 21 | J30: 0 | K30: 0 | L30: 0 | M30: 0 | N30: 0 | O30: 0 | P30: 0 | Q30: 0 | R30: 0 | S30: 0 | T30: 0 | U30: 0 | V30: =SUM(E30:Q30) -> 83
C31: 11 | D31: GIBBONS, Neil | E31: 18 | F31: 0 | G31: 20 | H31: 19 | I31: 20 | J31: 0 | K31: 0 | L31: 0 | M31: 0 | N31: 0 | O31: 0 | P31: 0 | Q31: 0 | R31: 0 | S31: 0 | T31: 0 | U31: 0 | V31: =SUM(E31:Q31) -> 77
C32: 12 | D32: RAE, Nick | E32: 13 | F32: 15 | G32: 15 | H32: 15 | I32: 15 | J32: 0 | K32: 0 | L32: 0 | M32: 0 | N32: 0 | O32: 0 | P32: 0 | Q32: 0 | R32: 0 | S32: 0 | T32: 0 | U32: 0 | V32: =SUM(E32:Q32) -> 73
C33: 13 | D33: ROUGHLEY, Andrew | E33: 24 | F33: 0 | G33: 19 | H33: 22 | I33: 0 | J33: 0 | K33: 0 | L33: 0 | M33: 0 | N33: 0 | O33: 0 | P33: 0 | Q33: 0 | R33: 0 | S33: 0 | T33: 0 | U33: 0 | V33: =SUM(E33:Q33) -> 65
C34: 14 | D34: DOHERTY, Mark | E34: 14 | F34: 17 | G34: 16 | H34: 16 | I34: 0 | J34: 0 | K34: 0 | L34: 0 | M34: 0 | N34: 0 | O34: 0 | P34: 0 | Q34: 0 | R34: 0 | S34: 0 | T34: 0 | U34: 0 | V34: =SUM(E34:Q34) -> 63
C35: 15 | D35: CLARKE, Pete | E35: 30 | F35: 30 | G35: 0 | H35: 0 | I35: 0 | J35: 0 | K35: 0 | L35: 0 | M35: 0 | N35: 0 | O35: 0 | P35: 0 | Q35: 0 | R35: 0 | S35: 0 | T35: 0 | U35: 0 | V35: =SUM(E35:Q35) -> 60
C36: 16 | D36: CONNOLLY, Patrick | E36: 0 | F36: 16 | G36: 0 | H36: 17 | I36: 16 | J36: 0 | K36: 0 | L36: 0 | M36: 0 | N36: 0 | O36: 0 | P36: 0 | Q36: 0 | R36: 0 | S36: 0 | T36: 0 | U36: 0 | V36: =SUM(E36:Q36) -> 49
C37: 17 | D37: PERRY, Robert | E37: 15 | F37: 0 | G37: 17 | H37: 0 | I37: 17 | J37: 0 | K37: 0 | L37: 0 | M37: 0 | N37: 0 | O37: 0 | P37: 0 | Q37: 0 | R37: 0 | S37: 0 | T37: 0 | U37: 0 | V37: =SUM(E37:Q37) -> 49
C38: 18 | D38: REID, Ian | E38: 22 | F38: 0 | G38: 24 | H38: 0 | I38: 0 | J38: 0 | K38: 0 | L38: 0 | M38: 0 | N38: 0 | O38: 0 | P38: 0 | Q38: 0 | R38: 0 | S38: 0 | T38: 0 | U38: 0 | V38: =SUM(E38:Q38) -> 46
C39: 19 | D39: SUMMERFIELD, Leon | E39: 0 | F39: 0 | G39: 0 | H39: 20 | I39: 22 | J39: 0 | K39: 0 | L39: 0 | M39: 0 | N39: 0 | O39: 0 | P39: 0 | Q39: 0 | R39: 0 | S39: 0 | T39: 0 | U39: 0 | V39: =SUM(E39:Q39) -> 42
C40: 20 | D40: CANNINGS, Ian | E40: 16 | F40: 18 | G40: 0 | H40: 0 | I40: 0 | J40: 0 | K40: 0 | L40: 0 | M40: 0 | N40: 0 | O40: 0 | P40: 0 | Q40: 0 | R40: 0 | S40: 0 | T40: 0 | U40: 0 | V40: =SUM(E40:Q40) -> 34
C41: 21 | D41: GORMAN, Louis | E41: 0 | F41: 0 | G41: 0 | H41: 0 | I41: 30 | J41: 0 | K41: 0 | L41: 0 | M41: 0 | N41: 0 | O41: 0 | P41: 0 | Q41: 0 | R41: 0 | S41: 0 | T41: 0 | U41: 0 | V41: =SUM(E41:Q41) -> 30
C42: 22 | D42: MURPHY, Bernie | E42: 0 | F42: 0 | G42: 0 | H42: 0 | I42: 29 | J42: 0 | K42: 0 | L42: 0 | M42: 0 | N42: 0 | O42: 0 | P42: 0 | Q42: 0 | R42: 0 | S42: 0 | T42: 0 | U42: 0 | V42: =SUM(E42:Q42) -> 29
C43: 23 | D43: STOCKER, Ken | E43: 12 | F43: 14 | G43: 0 | H43: 0 | I43: 0 | J43: 0 | K43: 0 | L43: 0 | M43: 0 | N43: 0 | O43: 0 | P43: 0 | Q43: 0 | R43: 0 | S43: 0 | T43: 0 | U43: 0 | V43: =SUM(E43:Q43) -> 26
C44: 24 | D44: YATES, Sam | E44: 0 | F44: 24 | G44: 0 | H44: 0 | I44: 0 | J44: 0 | K44: 0 | L44: 0 | M44: 0 | N44: 0 | O44: 0 | P44: 0 | Q44: 0 | R44: 0 | S44: 0 | T44: 0 | U44: 0 | V44: =SUM(E44:Q44) -> 24
C45: 25 | D45: FIELDING, Tom | E45: 23 | F45: 0 | G45: 0 | H45: 0 | I45: 0 | J45: 0 | K45: 0 | L45: 0 | M45: 0 | N45: 0 | O45: 0 | P45: 0 | Q45: 0 | R45: 0 | S45: 0 | T45: 0 | U45: 0 | V45: =SUM(E45:Q45) -> 23
C46: 26 | D46: MCARDLE, Pete | E46: 0 | F46: 0 | G46: 0 | H46: 0 | I46: 19 | J46: 0 | K46: 0 | L46: 0 | M46: 0 | N46: 0 | O46: 0 | P46: 0 | Q46: 0 | R46: 0 | S46: 0 | T46: 0 | U46: 0 | V46: =SUM(E46:Q46) -> 19
B47: WALLASEY ATHLETIC CLUB GRAND PRIX 2025-2026 | E47: MT Royden Park 02/09/25 | F47: MT Wallasey 09/09/25 | G47: MT WCP 16/09/25 | H47: MT Arrowe Park 23/09/25 | I47: BL 1 Tattenhall 28/09/25 | J47: LD Race 1 Sherdley Park 11/10/25 | K47: BL 2 Delamere 16/11/25 | L47: L&D Race 2 Sefton Park 22/11/25 | M47: BL 3 Trac Mon 07/12/25 | N47: Merseyside CC Sherdley Park 13/12/25 | O47: L&D Race 3 Arrowe Park 10/01/26 | P47: Northern CC Pontefract 22/01/26 | Q47: BL 4 Birkenhead Park 01/02/26 | R47: L&D Champs Clarke's Garden 08/02/26 | S47: National Sedgefield 21/02/26 | T47: BL 5 tbc 01/03/26 | U47: BL 6 New Brighton 22/03/26 | V47: Total
A48: WOMEN | C48: 1 | D48: MCARD, Jan | E48: 25 | F48: 26 | G48: 29 | H48: 28 | I48: 30 | J48: 27 | K48: 0 | L48: 0 | M48: 0 | N48: 0 | O48: 0 | P48: 0 | Q48: 0 | R48: 0 | S48: 0 | T48: 0 | U48: 0 | V48: =SUM(E48:Q48) -> 165
C49: 2 | D49: GRIFFITHS, Lisa | E49: 28 | F49: 28 | G49: 30 | H49: 30 | I49: 28 | J49: 0 | K49: 0 | L49: 0 | M49: 0 | N49: 0 | O49: 0 | P49: 0 | Q49: 0 | R49: 0 | S49: 0 | T49: 0 | U49: 0 | V49: =SUM(E49:Q49) -> 144
C50: 3 | D50: COWDRAY, Kat | E50: 27 | F50: 0 | G50: 28 | H50: 29 | I50: 29 | J50: 29 | K50: 0 | L50: 0 | M50: 0 | N50: 0 | O50: 0 | P50: 0 | Q50: 0 | R50: 0 | S50: 0 | T50: 0 | U50: 0 | V50: =SUM(E50:Q50) -> 142
C51: 4 | D51: REYNOLDS, Sue | E51: 26 | F51: 27 | G51: 27 | H51: 0 | I51: 27 | J51: 28 | K51: 0 | L51: 0 | M51: 0 | N51: 0 | O51: 0 | P51: 0 | Q51: 0 | R51: 0 | S51: 0 | T51: 0 | U51: 0 | V51: =SUM(E51:Q51) -> 135
C52: 5 | D52: CUCKSEY, Lesley-Anne | E52: 22 | F52: 22 | G52: 0 | H52: 24 | I52: 23 | J52: 0 | K52: 0 | L52: 0 | M52: 0 | N52: 0 | O52: 0 | P52: 0 | Q52: 0 | R52: 0 | S52: 0 | T52: 0 | U52: 0 | V52: =SUM(E52:Q52) -> 91
C53: 6 | D53: MCCONNELL, Vicky | E53: 30 | F53: 30 | G53: 0 | H53: 0 | I53: 0 | J53: 30 | K53: 0 | L53: 0 | M53: 0 | N53: 0 | O53: 0 | P53: 0 | Q53: 0 | R53: 0 | S53: 0 | T53: 0 | U53: 0 | V53: =SUM(E53:Q53) -> 90
C54: 7 | D54: REES, Mary | E54: 19 | F54: 21 | G54: 0 | H54: 21 | I54: 22 | J54: 0 | K54: 0 | L54: 0 | M54: 0 | N54: 0 | O54: 0 | P54: 0 | Q54: 0 | R54: 0 | S54: 0 | T54: 0 | U54: 0 | V54: =SUM(E54:Q54) -> 83
C55: 8 | D55: DAVIES, Nicci | E55: 17 | F55: 17 | G55: 24 | H55: 22 | I55: 0 | J55: 0 | K55: 0 | L55: 0 | M55: 0 | N55: 0 | O55: 0 | P55: 0 | Q55: 0 | R55: 0 | S55: 0 | T55: 0 | U55: 0 | V55: =SUM(E55:Q55) -> 80
C56: 9 | D56: DABNER, Erin | E56: 0 | F56: 25 | G56: 26 | H56: 27 | I56: 0 | J56: 0 | K56: 0 | L56: 0 | M56: 0 | N56: 0 | O56: 0 | P56: 0 | Q56: 0 | R56: 0 | S56: 0 | T56: 0 | U56: 0 | V56: =SUM(E56:Q56) -> 78
C57: 10 | D57: STANLEY, Alexandra | E57: 24 | F57: 24 | G57: 0 | H57: 26 | I57: 0 | J57: 0 | K57: 0 | L57: 0 | M57: 0 | N57: 0 | O57: 0 | P57: 0 | Q57: 0 | R57: 0 | S57: 0 | T57: 0 | U57: 0 | V57: =SUM(E57:Q57) -> 74
C58: 11 | D58: CUTHBERT, Caet | E58: 18 | F58: 12 | G58: 23 | H58: 20 | I58: 0 | J58: 0 | K58: 0 | L58: 0 | M58: 0 | N58: 0 | O58: 0 | P58: 0 | Q58: 0 | R58: 0 | S58: 0 | T58: 0 | U58: 0 | V58: =SUM(E58:Q58) -> 73
C59: 12 | D59: HUNTER, Maria | E59: 23 | F59: 23 | G59: 0 | H59: 0 | I59: 24 | J59: 0 | K59: 0 | L59: 0 | M59: 0 | N59: 0 | O59: 0 | P59: 0 | Q59: 0 | R59: 0 | S59: 0 | T59: 0 | U59: 0 | V59: =SUM(E59:Q59) -> 70
C60: 13 | D60: EDWARDS, Jane | E60: 13 | F60: 15 | G60: 22 | H60: 19 | I60: 0 | J60: 0 | K60: 0 | L60: 0 | M60: 0 | N60: 0 | O60: 0 | P60: 0 | Q60: 0 | R60: 0 | S60: 0 | T60: 0 | U60: 0 | V60: =SUM(E60:Q60) -> 69
C61: 14 | D61: ANDREWS, Katherine | E61: 16 | F61: 0 | G61: 25 | H61: 25 | I61: 0 | J61: 0 | K61: 0 | L61: 0 | M61: 0 | N61: 0 | O61: 0 | P61: 0 | Q61: 0 | R61: 0 | S61: 0 | T61: 0 | U61: 0 | V61: =SUM(E61:Q61) -> 66
C62: 15 | D62: WYNTER, Serena | E62: 21 | F62: 18 | G62: 0 | H62: 23 | I62: 0 | J62: 0 | K62: 0 | L62: 0 | M62: 0 | N62: 0 | O62: 0 | P62: 0 | Q62: 0 | R62: 0 | S62: 0 | T62: 0 | U62: 0 | V62: =SUM(E62:Q62) -> 62
C63: 16 | D63: BLACKLOCK, Becky | E63: 29 | F63: 29 | G63: 0 | H63: 0 | I63: 0 | J63: 0 | K63: 0 | L63: 0 | M63: 0 | N63: 0 | O63: 0 | P63: 0 | Q63: 0 | R63: 0 | S63: 0 | T63: 0 | U63: 0 | V63: =SUM(E63:Q63) -> 58
C64: 17 | D64: ELLISON, Sandra | E64: 0 | F64: 14 | G64: 21 | H64: 18 | I64: 0 | J64: 0 | K64: 0 | L64: 0 | M64: 0 | N64: 0 | O64: 0 | P64: 0 | Q64: 0 | R64: 0 | S64: 0 | T64: 0 | U64: 0 | V64: =SUM(E64:Q64) -> 53
C65: 18 | D65: CHAPMAN, Nicci | E65: 15 | F65: 16 | G65: 0 | H65: 0 | I65: 21 | J65: 0 | K65: 0 | L65: 0 | M65: 0 | N65: 0 | O65: 0 | P65: 0 | Q65: 0 | R65: 0 | S65: 0 | T65: 0 | U65: 0 | V65: =SUM(E65:Q65) -> 52
C66: 19 | D66: KEE, Michaela | E66: 20 | F66: 19 | G66: 0 | H66: 0 | I66: 0 | J66: 0 | K66: 0 | L66: 0 | M66: 0 | N66: 0 | O66: 0 | P66: 0 | Q66: 0 | R66: 0 | S66: 0 | T66: 0 | U66: 0 | V66: =SUM(E66:Q66) -> 39
C67: 20 | D67: CRISP, Zoe | E67: 0 | F67: 0 | G67: 0 | H67: 0 | I67: 26 | J67: 0 | K67: 0 | L67: 0 | M67: 0 | N67: 0 | O67: 0 | P67: 0 | Q67: 0 | R67: 0 | S67: 0 | T67: 0 | U67: 0 | V67: =SUM(E67:Q67) -> 26
C68: 21 | D68: HOATHER, Taylor | E68: 0 | F68: 0 | G68: 0 | H68: 0 | I68: 25 | J68: 0 | K68: 0 | L68: 0 | M68: 0 | N68: 0 | O68: 0 | P68: 0 | Q68: 0 | R68: 0 | S68: 0 | T68: 0 | U68: 0 | V68: =SUM(E68:Q68) -> 25
C69: 22 | D69: BURKE, Lauren | E69: 0 | F69: 20 | G69: 0 | H69: 0 | I69: 0 | J69: 0 | K69: 0 | L69: 0 | M69: 0 | N69: 0 | O69: 0 | P69: 0 | Q69: 0 | R69: 0 | S69: 0 | T69: 0 | U69: 0 | V69: =SUM(E69:Q69) -> 20
C70: 23 | D70: WHITE, Renee | E70: 14 | F70: 0 | G70: 0 | H70: 0 | I70: 0 | J70: 0 | K70: 0 | L70: 0 | M70: 0 | N70: 0 | O70: 0 | P70: 0 | Q70: 0 | R70: 0 | S70: 0 | T70: 0 | U70: 0 | V70: =SUM(E70:Q70) -> 14
C71: 24 | D71: RILEY, Sandra | E71: 0 | F71: 13 | G71: 0 | H71: 0 | I71: 0 | J71: 0 | K71: 0 | L71: 0 | M71: 0 | N71: 0 | O71: 0 | P71: 0 | Q71: 0 | R71: 0 | S71: 0 | T71: 0 | U71: 0 | V71: =SUM(E71:Q71) -> 13
A72: JUNIORS | C72: 1 | D72: PEARSE, Gabriel | E72: 30 | F72: 30 | G72: 30 | H72: 30 | I72: 30 | J72: 0 | K72: 0 | L72: 0 | M72: 0 | N72: 0 | O72: 0 | P72: 0 | Q72: 0 | R72: 0 | S72: 0 | T72: 0 | U72: 0 | V72: =SUM(E72:Q72) -> 150
C73: 2 | D73: CHOW, Pak Ho | E73: 30 | F73: 30 | G73: 30 | H73: 30 | I73: 27 | J73: 0 | K73: 0 | L73: 0 | M73: 0 | N73: 0 | O73: 0 | P73: 0 | Q73: 0 | R73: 0 | S73: 0 | T73: 0 | U73: 0 | V73: =SUM(E73:Q73) -> 147
C74: 3 | D74: CUTHBERT, Patrick | E74: 29 | F74: 29 | G74: 29 | H74: 29 | I74: 29 | J74: 0 | K74: 0 | L74: 0 | M74: 0 | N74: 0 | O74: 0 | P74: 0 | Q74: 0 | R74: 0 | S74: 0 | T74: 0 | U74: 0 | V74: =SUM(E74:Q74) -> 145
C75: 4 | D75: PEARSE, Phoenix | E75: 28 | F75: 28 | G75: 28 | H75: 28 | I75: 28 | J75: 0 | K75: 0 | L75: 0 | M75: 0 | N75: 0 | O75: 0 | P75: 0 | Q75: 0 | R75: 0 | S75: 0 | T75: 0 | U75: 0 | V75: =SUM(E75:Q75) -> 140
C76: 5 | D76: COWDRAY, Lawrence | E76: 30 | F76: 0 | G76: 30 | H76: 30 | I76: 0 | J76: 0 | K76: 0 | L76: 0 | M76: 0 | N76: 0 | O76: 0 | P76: 0 | Q76: 0 | R76: 0 | S76: 0 | T76: 0 | U76: 0 | V76: =SUM(E76:Q76) -> 90
C77: 6 | D77: BACKINSELL, Kitty | E77: 0 | F77: 30 | G77: 0 | H77: 0 | I77: 0 | J77: 0 | K77: 0 | L77: 0 | M77: 0 | N77: 0 | O77: 0 | P77: 0 | Q77: 0 | R77: 0 | S77: 0 | T77: 0 | U77: 0 | V77: =SUM(E77:Q77) -> 30

Sheet RaceResults
A1: AgeCat | B1: RunnerGPDivision | C1: Name | D1: Race1Score | E1: Race2Score | F1: Race3Score | G1: Race4Score | H1: Race5Score | I1: Race6Score | J1: Race7Score | K1: Race8Score | L1: Race9Score | M1: Race10Score | N1: Race11Score | O1: Race12Score | P1: Race13Score | Q1: Race14Score | R1: Race15Score | S1: Race16Score | T1: Race17Score | U1: Race18Score | V1: MyKey
A2: 1 | B2: 0 | C2: RAE, Nick | D2: 13 | E2: 15 | F2: 15 | G2: 15 | H2: 15 | I2: 0 | J2: 0 | K2: 0 | L2: 0 | M2: 0 | N2: 0 | O2: 0 | P2: 0 | Q2: 0 | R2: 0 | S2: 0 | T2: 0 | U2: 0 | V2: 10
A3: 1 | B3: 0 | C3: DOHERTY, Mark | D3: 14 | E3: 17 | F3: 16 | G3: 16 | H3: 0 | I3: 0 | J3: 0 | K3: 0 | L3: 0 | M3: 0 | N3: 0 | O3: 0 | P3: 0 | Q3: 0 | R3: 0 | S3: 0 | T3: 0 | U3: 0 | V3: 10
A4: 1 | B4: 0 | C4: CONNOLLY, Patrick | D4: 0 | E4: 16 | F4: 0 | G4: 17 | H4: 16 | I4: 0 | J4: 0 | K4: 0 | L4: 0 | M4: 0 | N4: 0 | O4: 0 | P4: 0 | Q4: 0 | R4: 0 | S4: 0 | T4: 0 | U4: 0 | V4: 10
A5: 1 | B5: 0 | C5: SAUNDERS, Paul | D5: 19 | E5: 22 | F5: 22 | G5: 24 | H5: 23 | I5: 28 | J5: 0 | K5: 0 | L5: 0 | M5: 0 | N5: 0 | O5: 0 | P5: 0 | Q5: 0 | R5: 0 | S5: 0 | T5: 0 | U5: 0 | V5: 10
A6: 1 | B6: 0 | C6: MURPHY, Bernie | D6: 0 | E6: 0 | F6: 0 | G6: 0 | H6: 29 | I6: 0 | J6: 0 | K6: 0 | L6: 0 | M6: 0 | N6: 0 | O6: 0 | P6: 0 | Q6: 0 | R6: 0 | S6: 0 | T6: 0 | U6: 0 | V6: 10
A7: 1 | B7: 0 | C7: GIBBONS, Neil | D7: 18 | E7: 0 | F7: 20 | G7: 19 | H7: 20 | I7: 0 | J7: 0 | K7: 0 | L7: 0 | M7: 0 | N7: 0 | O7: 0 | P7: 0 | Q7: 0 | R7: 0 | S7: 0 | T7: 0 | U7: 0 | V7: 10
A8: 1 | B8: 0 | C8: WOODS, Sam | D8: 28 | E8: 27 | F8: 28 | G8: 27 | H8: 27 | I8: 0 | J8: 0 | K8: 0 | L8: 0 | M8: 0 | N8: 0 | O8: 0 | P8: 0 | Q8: 0 | R8: 0 | S8: 0 | T8: 0 | U8: 0 | V8: 10
A9: 1 | B9: 0 | C9: REID, Ian | D9: 22 | E9: 0 | F9: 24 | G9: 0 | H9: 0 | I9: 0 | J9: 0 | K9: 0 | L9: 0 | M9: 0 | N9: 0 | O9: 0 | P9: 0 | Q9: 0 | R9: 0 | S9: 0 | T9: 0 | U9: 0 | V9: 10
A10: 1 | B10: 0 | C10: PERRY, Robert | D10: 15 | E10: 0 | F10: 17 | G10: 0 | H10: 17 | I10: 0 | J10: 0 | K10: 0 | L10: 0 | M10: 0 | N10: 0 | O10: 0 | P10: 0 | Q10: 0 | R10: 0 | S10: 0 | T10: 0 | U10: 0 | V10: 10
A11: 1 | B11: 0 | C11: GRIFFITHS, Paul | D11: 26 | E11: 28 | F11: 27 | G11: 26 | H11: 26 | I11: 30 | J11: 0 | K11: 0 | L11: 0 | M11: 0 | N11: 0 | O11: 0 | P11: 0 | Q11: 0 | R11: 0 | S11: 0 | T11: 0 | U11: 0 | V11: 10
A12: 1 | B12: 0 | C12: GORMAN, Louis | D12: 0 | E12: 0 | F12: 0 | G12: 0 | H12: 30 | I12: 0 | J12: 0 | K12: 0 | L12: 0 | M12: 0 | N12: 0 | O12: 0 | P12: 0 | Q12: 0 | R12: 0 | S12: 0 | T12: 0 | U12: 0 | V12: 10
A13: 1 | B13: 0 | C13: WARD, Simon | D13: 21 | E13: 21 | F13: 23 | G13: 23 | H13: 0 | I13: 0 | J13: 0 | K13: 0 | L13: 0 | M13: 0 | N13: 0 | O13: 0 | P13: 0 | Q13: 0 | R13: 0 | S13: 0 | T13: 0 | U13: 0 | V13: 10
A14: 1 | B14: 0 | C14: HOLMES, Tony | D14: 17 | E14: 19 | F14: 18 | G14: 18 | H14: 18 | I14: 0 | J14: 0 | K14: 0 | L14: 0 | M14: 0 | N14: 0 | O14: 0 | P14: 0 | Q14: 0 | R14: 0 | S14: 0 | T14: 0 | U14: 0 | V14: 10
A15: 1 | B15: 0 | C15: SUMMERFIELD, Leon | D15: 0 | E15: 0 | F15: 0 | G15: 20 | H15: 22 | I15: 0 | J15: 0 | K15: 0 | L15: 0 | M15: 0 | N15: 0 | O15: 0 | P15: 0 | Q15: 0 | R15: 0 | S15: 0 | T15: 0 | U15: 0 | V15: 10
A16: 1 | B16: 0 | C16: ROUGHLEY, Andrew | D16: 24 | E16: 0 | F16: 19 | G16: 22 | H16: 0 | I16: 0 | J16: 0 | K16: 0 | L16: 0 | M16: 0 | N16: 0 | O16: 0 | P16: 0 | Q16: 0 | R16: 0 | S16: 0 | T16: 0 | U16: 0 | V16: 10
A17: 1 | B17: 0 | C17: DYSON, Mike | D17: 20 | E17: 23 | F17: 25 | G17: 25 | H17: 24 | I17: 0 | J17: 0 | K17: 0 | L17: 0 | M17: 0 | N17: 0 | O17: 0 | P17: 0 | Q17: 0 | R17: 0 | S17: 0 | T17: 0 | U17: 0 | V17: 10
A18: 1 | B18: 0 | C18: BACKINSELL, Jim | D18: 0 | E18: 20 | F18: 21 | G18: 21 | H18: 21 | I18: 0 | J18: 0 | K18: 0 | L18: 0 | M18: 0 | N18: 0 | O18: 0 | P18: 0 | Q18: 0 | R18: 0 | S18: 0 | T18: 0 | U18: 0 | V18: 10
A19: 1 | B19: 0 | C19: HOARE, Daniel | D19: 25 | E19: 25 | F19: 26 | G19: 28 | H19: 25 | I19: 29 | J19: 0 | K19: 0 | L19: 0 | M19: 0 | N19: 0 | O19: 0 | P19: 0 | Q19: 0 | R19: 0 | S19: 0 | T19: 0 | U19: 0 | V19: 10
A20: 1 | B20: 0 | C20: FIELDING, Tom | D20: 23 | E20: 0 | F20: 0 | G20: 0 | H20: 0 | I20: 0 | J20: 0 | K20: 0 | L20: 0 | M20: 0 | N20: 0 | O20: 0 | P20: 0 | Q20: 0 | R20: 0 | S20: 0 | T20: 0 | U20: 0 | V20: 10
A21: 1 | B21: 0 | C21: SALMON, Kieran | D21: 27 | E21: 26 | F21: 29 | G21: 30 | H21: 28 | I21: 0 | J21: 0 | K21: 0 | L21: 0 | M21: 0 | N21: 0 | O21: 0 | P21: 0 | Q21: 0 | R21: 0 | S21: 0 | T21: 0 | U21: 0 | V21: 10
A22: 1 | B22: 0 | C22: YATES, Sam | D22: 0 | E22: 24 | F22: 0 | G22: 0 | H22: 0 | I22: 0 | J22: 0 | K22: 0 | L22: 0 | M22: 0 | N22: 0 | O22: 0 | P22: 0 | Q22: 0 | R22: 0 | S22: 0 | T22: 0 | U22: 0 | V22: 10
A23: 1 | B23: 0 | C23: MCARDLE, Pete | D23: 0 | E23: 0 | F23: 0 | G23: 0 | H23: 19 | I23: 0 | J23: 0 | K23: 0 | L23: 0 | M23: 0 | N23: 0 | O23: 0 | P23: 0 | Q23: 0 | R23: 0 | S23: 0 | T23: 0 | U23: 0 | V23: 10
A24: 1 | B24: 0 | C24: CLARKE, Pete | D24: 30 | E24: 30 | F24: 0 | G24: 0 | H24: 0 | I24: 0 | J24: 0 | K24: 0 | L24: 0 | M24: 0 | N24: 0 | O24: 0 | P24: 0 | Q24: 0 | R24: 0 | S24: 0 | T24: 0 | U24: 0 | V24: 10
A25: 1 | B25: 0 | C25: STOCKER, Ken | D25: 12 | E25: 14 | F25: 0 | G25: 0 | H25: 0 | I25: 0 | J25: 0 | K25: 0 | L25: 0 | M25: 0 | N25: 0 | O25: 0 | P25: 0 | Q25: 0 | R25: 0 | S25: 0 | T25: 0 | U25: 0 | V25: 10
A26: 1 | B26: 0 | C26: CANNINGS, Ian | D26: 16 | E26: 18 | F26: 0 | G26: 0 | H26: 0 | I26: 0 | J26: 0 | K26: 0 | L26: 0 | M26: 0 | N26: 0 | O26: 0 | P26: 0 | Q26: 0 | R26: 0 | S26: 0 | T26: 0 | U26: 0 | V26: 10
A27: 1 | B27: 0 | C27: WEBSTER, Richard | D27: 29 | E27: 29 | F27: 30 | G27: 29 | H27: 0 | I27: 0 | J27: 0 | K27: 0 | L27: 0 | M27: 0 | N27: 0 | O27: 0 | P27: 0 | Q27: 0 | R27: 0 | S27: 0 | T27: 0 | U27: 0 | V27: 10
A28: 1 | B28: 1 | C28: PEARSE, Rob | D28: 27 | E28: 27 | F28: 0 | G28: 0 | H28: 26 | I28: 0 | J28: 0 | K28: 0 | L28: 0 | M28: 0 | N28: 0 | O28: 0 | P28: 0 | Q28: 0 | R28: 0 | S28: 0 | T28: 0 | U28: 0 | V28: 11
A29: 1 | B29: 1 | C29: BIRD, Phil | D29: 16 | E29: 15 | F29: 19 | G29: 20 | H29: 0 | I29: 0 | J29: 0 | K29: 0 | L29: 0 | M29: 0 | N29: 0 | O29: 0 | P29: 0 | Q29: 0 | R29: 0 | S29: 0 | T29: 0 | U29: 0 | V29: 11
A30: 1 | B30: 1 | C30: CUTHBERT, Phil | D30: 22 | E30: 21 | F30: 0 | G30: 0 | H30: 0 | I30: 0 | J30: 0 | K30: 0 | L30: 0 | M30: 0 | N30: 0 | O30: 0 | P30: 0 | Q30: 0 | R30: 0 | S30: 0 | T30: 0 | U30: 0 | V30: 11
A31: 1 | B31: 1 | C31: MCARDLE, Derek | D31: 0 | E31: 19 | F31: 22 | G31: 22 | H31: 15 | I31: 0 | J31: 0 | K31: 0 | L31: 0 | M31: 0 | N31: 0 | O31: 0 | P31: 0 | Q31: 0 | R31: 0 | S31: 0 | T31: 0 | U31: 0 | V31: 11
A32: 1 | B32: 1 | C32: ROBSON, Michael | D32: 25 | E32: 25 | F32: 28 | G32: 30 | H32: 24 | I32: 0 | J32: 0 | K32: 0 | L32: 0 | M32: 0 | N32: 0 | O32: 0 | P32: 0 | Q32: 0 | R32: 0 | S32: 0 | T32: 0 | U32: 0 | V32: 11
A33: 1 | B33: 1 | C33: NORTON, Steve | D33: 17 | E33: 18 | F33: 21 | G33: 21 | H33: 16 | I33: 0 | J33: 0 | K33: 0 | L33: 0 | M33: 0 | N33: 0 | O33: 0 | P33: 0 | Q33: 0 | R33: 0 | S33: 0 | T33: 0 | U33: 0 | V33: 11
A34: 1 | B34: 1 | C34: DABNER, Phil | D34: 24 | E34: 24 | F34: 27 | G34: 27 | H34: 21 | I34: 0 | J34: 0 | K34: 0 | L34: 0 | M34: 0 | N34: 0 | O34: 0 | P34: 0 | Q34: 0 | R34: 0 | S34: 0 | T34: 0 | U34: 0 | V34: 11
A35: 1 | B35: 1 | C35: COLE, Steve | D35: 18 | E35: 16 | F35: 20 | G35: 0 | H35: 0 | I35: 0 | J35: 0 | K35: 0 | L35: 0 | M35: 0 | N35: 0 | O35: 0 | P35: 0 | Q35: 0 | R35: 0 | S35: 0 | T35: 0 | U35: 0 | V35: 11
A36: 1 | B36: 1 | C36: BARHAM, Pete | D36: 19 | E36: 20 | F36: 23 | G36: 23 | H36: 17 | I36: 28 | J36: 0 | K36: 0 | L36: 0 | M36: 0 | N36: 0 | O36: 0 | P36: 0 | Q36: 0 | R36: 0 | S36: 0 | T36: 0 | U36: 0 | V36: 11
A37: 1 | B37: 1 | C37: JONES, Christopher | D37: 0 | E37: 0 | F37: 0 | G37: 0 | H37: 23 | I37: 0 | J37: 0 | K37: 0 | L37: 0 | M37: 0 | N37: 0 | O37: 0 | P37: 0 | Q37: 0 | R37: 0 | S37: 0 | T37: 0 | U37: 0 | V37: 11
A38: 1 | B38: 1 | C38: BOWERS, Chris | D38: 23 | E38: 23 | F38: 26 | G38: 26 | H38: 20 | I38: 29 | J38: 0 | K38: 0 | L38: 0 | M38: 0 | N38: 0 | O38: 0 | P38: 0 | Q38: 0 | R38: 0 | S38: 0 | T38: 0 | U38: 0 | V38: 11
A39: 1 | B39: 1 | C39: LESLIE, Steven | D39: 0 | E39: 26 | F39: 0 | G39: 29 | H39: 25 | I39: 0 | J39: 0 | K39: 0 | L39: 0 | M39: 0 | N39: 0 | O39: 0 | P39: 0 | Q39: 0 | R39: 0 | S39: 0 | T39: 0 | U39: 0 | V39: 11
A40: 1 | B40: 1 | C40: CHADWICK, Oliver | D40: 30 | E40: 30 | F40: 30 | G40: 0 | H40: 30 | I40: 0 | J40: 0 | K40: 0 | L40: 0 | M40: 0 | N40: 0 | O40: 0 | P40: 0 | Q40: 0 | R40: 0 | S40: 0 | T40: 0 | U40: 0 | V40: 11
A41: 1 | B41: 1 | C41: SEAL, Brian | D41: 20 | E41: 22 | F41: 25 | G41: 25 | H41: 19 | I41: 0 | J41: 0 | K41: 0 | L41: 0 | M41: 0 | N41: 0 | O41: 0 | P41: 0 | Q41: 0 | R41: 0 | S41: 0 | T41: 0 | U41: 0 | V41: 11
A42: 1 | B42: 1 | C42: WHITWORTH, Rab | D42: 21 | E42: 17 | F42: 24 | G42: 24 | H42: 18 | I42: 0 | J42: 0 | K42: 0 | L42: 0 | M42: 0 | N42: 0 | O42: 0 | P42: 0 | Q42: 0 | R42: 0 | S42: 0 | T42: 0 | U42: 0 | V42: 11
A43: 1 | B43: 1 | C43: KENNEDY, Alan | D43: 29 | E43: 29 | F43: 0 | G43: 0 | H43: 28 | I43: 0 | J43: 0 | K43: 0 | L43: 0 | M43: 0 | N43: 0 | O43: 0 | P43: 0 | Q43: 0 | R43: 0 | S43: 0 | T43: 0 | U43: 0 | V43: 11
A44: 1 | B44: 1 | C44: EVES, Scott | D44: 26 | E44: 0 | F44: 0 | G44: 0 | H44: 22 | I44: 0 | J44: 0 | K44: 0 | L44: 0 | M44: 0 | N44: 0 | O44: 0 | P44: 0 | Q44: 0 | R44: 0 | S44: 0 | T44: 0 | U44: 0 | V44: 11
A45: 1 | B45: 1 | C45: JONES, Mike T | D45: 28 | E45: 28 | F45: 29 | G45: 28 | H45: 27 | I45: 0 | J45: 0 | K45: 0 | L45: 0 | M45: 0 | N45: 0 | O45: 0 | P45: 0 | Q45: 0 | R45: 0 | S45: 0 | T45: 0 | U45: 0 | V45: 11
A46: 1 | B46: 1 | C46: GILLIES, George | D46: 0 | E46: 0 | F46: 0 | G46: 0 | H46: 29 | I46: 30 | J46: 0 | K46: 0 | L46: 0 | M46: 0 | N46: 0 | O46: 0 | P46: 0 | Q46: 0 | R46: 0 | S46: 0 | T46: 0 | U46: 0 | V46: 11
A47: 2 | B47: 0 | C47: EDWARDS, Jane | D47: 13 | E47: 15 | F47: 22 | G47: 19 | H47: 0 | I47: 0 | J47: 0 | K47: 0 | L47: 0 | M47: 0 | N47: 0 | O47: 0 | P47: 0 | Q47: 0 | R47: 0 | S47: 0 | T47: 0 | U47: 0 | V47: 20
A48: 2 | B48: 0 | C48: WYNTER, Serena | D48: 21 | E48: 18 | F48: 0 | G48: 23 | H48: 0 | I48: 0 | J48: 0 | K48: 0 | L48: 0 | M48: 0 | N48: 0 | O48: 0 | P48: 0 | Q48: 0 | R48: 0 | S48: 0 | T48: 0 | U48: 0 | V48: 20
A49: 2 | B49: 0 | C49: GRIFFITHS, Lisa | D49: 28 | E49: 28 | F49: 30 | G49: 30 | H49: 28 | I49: 0 | J49: 0 | K49: 0 | L49: 0 | M49: 0 | N49: 0 | O49: 0 | P49: 0 | Q49: 0 | R49: 0 | S49: 0 | T49: 0 | U49: 0 | V49: 20
A50: 2 | B50: 0 | C50: CHAPMAN, Nicci | D50: 15 | E50: 16 | F50: 0 | G50: 0 | H50: 21 | I50: 0 | J50: 0 | K50: 0 | L50: 0 | M50: 0 | N50: 0 | O50: 0 | P50: 0 | Q50: 0 | R50: 0 | S50: 0 | T50: 0 | U50: 0 | V50: 20
A51: 2 | B51: 0 | C51: MCARD, Jan | D51: 25 | E51: 26 | F51: 29 | G51: 28 | H51: 30 | I51: 27 | J51: 0 | K51: 0 | L51: 0 | M51: 0 | N51: 0 | O51: 0 | P51: 0 | Q51: 0 | R51: 0 | S51: 0 | T51: 0 | U51: 0 | V51: 20
A52: 2 | B52: 0 | C52: ELLISON, Sandra | D52: 0 | E52: 14 | F52: 21 | G52: 18 | H52: 0 | I52: 0 | J52: 0 | K52: 0 | L52: 0 | M52: 0 | N52: 0 | O52: 0 | P52: 0 | Q52: 0 | R52: 0 | S52: 0 | T52: 0 | U52: 0 | V52: 20
A53: 2 | B53: 0 | C53: REES, Mary | D53: 19 | E53: 21 | F53: 0 | G53: 21 | H53: 22 | I53: 0 | J53: 0 | K53: 0 | L53: 0 | M53: 0 | N53: 0 | O53: 0 | P53: 0 | Q53: 0 | R53: 0 | S53: 0 | T53: 0 | U53: 0 | V53: 20
A54: 2 | B54: 0 | C54: KEE, Michaela | D54: 20 | E54: 19 | F54: 0 | G54: 0 | H54: 0 | I54: 0 | J54: 0 | K54: 0 | L54: 0 | M54: 0 | N54: 0 | O54: 0 | P54: 0 | Q54: 0 | R54: 0 | S54: 0 | T54: 0 | U54: 0 | V54: 20
A55: 2 | B55: 0 | C55: CUCKSEY, Lesley-Anne | D55: 22 | E55: 22 | F55: 0 | G55: 24 | H55: 23 | I55: 0 | J55: 0 | K55: 0 | L55: 0 | M55: 0 | N55: 0 | O55: 0 | P55: 0 | Q55: 0 | R55: 0 | S55: 0 | T55: 0 | U55: 0 | V55: 20
A56: 2 | B56: 0 | C56: CUTHBERT, Caet | D56: 18 | E56: 12 | F56: 23 | G56: 20 | H56: 0 | I56: 0 | J56: 0 | K56: 0 | L56: 0 | M56: 0 | N56: 0 | O56: 0 | P56: 0 | Q56: 0 | R56: 0 | S56: 0 | T56: 0 | U56: 0 | V56: 20
A57: 2 | B57: 0 | C57: MCCONNELL, Vicky | D57: 30 | E57: 30 | F57: 0 | G57: 0 | H57: 0 | I57: 30 | J57: 0 | K57: 0 | L57: 0 | M57: 0 | N57: 0 | O57: 0 | P57: 0 | Q57: 0 | R57: 0 | S57: 0 | T57: 0 | U57: 0 | V57: 20
A58: 2 | B58: 0 | C58: DAVIES, Nicci | D58: 17 | E58: 17 | F58: 24 | G58: 22 | H58: 0 | I58: 0 | J58: 0 | K58: 0 | L58: 0 | M58: 0 | N58: 0 | O58: 0 | P58: 0 | Q58: 0 | R58: 0 | S58: 0 | T58: 0 | U58: 0 | V58: 20
A59: 2 | B59: 0 | C59: WHITE, Renee | D59: 14 | E59: 0 | F59: 0 | G59: 0 | H59: 0 | I59: 0 | J59: 0 | K59: 0 | L59: 0 | M59: 0 | N59: 0 | O59: 0 | P59: 0 | Q59: 0 | R59: 0 | S59: 0 | T59: 0 | U59: 0 | V59: 20
A60: 2 | B60: 0 | C60: HOATHER, Taylor | D60: 0 | E60: 0 | F60: 0 | G60: 0 | H60: 25 | I60: 0 | J60: 0 | K60: 0 | L60: 0 | M60: 0 | N60: 0 | O60: 0 | P60: 0 | Q60: 0 | R60: 0 | S60: 0 | T60: 0 | U60: 0 | V60: 20
A61: 2 | B61: 0 | C61: BURKE, Lauren | D61: 0 | E61: 20 | F61: 0 | G61: 0 | H61: 0 | I61: 0 | J61: 0 | K61: 0 | L61: 0 | M61: 0 | N61: 0 | O61: 0 | P61: 0 | Q61: 0 | R61: 0 | S61: 0 | T61: 0 | U61: 0 | V61: 20
A62: 2 | B62: 0 | C62: DABNER, Erin | D62: 0 | E62: 25 | F62: 26 | G62: 27 | H62: 0 | I62: 0 | J62: 0 | K62: 0 | L62: 0 | M62: 0 | N62: 0 | O62: 0 | P62: 0 | Q62: 0 | R62: 0 | S62: 0 | T62: 0 | U62: 0 | V62: 20
A63: 2 | B63: 0 | C63: COWDRAY, Kat | D63: 27 | E63: 0 | F63: 28 | G63: 29 | H63: 29 | I63: 29 | J63: 0 | K63: 0 | L63: 0 | M63: 0 | N63: 0 | O63: 0 | P63: 0 | Q63: 0 | R63: 0 | S63: 0 | T63: 0 | U63: 0 | V63: 20
A64: 2 | B64: 0 | C64: ANDREWS, Katherine | D64: 16 | E64: 0 | F64: 25 | G64: 25 | H64: 0 | I64: 0 | J64: 0 | K64: 0 | L64: 0 | M64: 0 | N64: 0 | O64: 0 | P64: 0 | Q64: 0 | R64: 0 | S64: 0 | T64: 0 | U64: 0 | V64: 20
A65: 2 | B65: 0 | C65: CRISP, Zoe | D65: 0 | E65: 0 | F65: 0 | G65: 0 | H65: 26 | I65: 0 | J65: 0 | K65: 0 | L65: 0 | M65: 0 | N65: 0 | O65: 0 | P65: 0 | Q65: 0 | R65: 0 | S65: 0 | T65: 0 | U65: 0 | V65: 20
A66: 2 | B66: 0 | C66: REYNOLDS, Sue | D66: 26 | E66: 27 | F66: 27 | G66: 0 | H66: 27 | I66: 28 | J66: 0 | K66: 0 | L66: 0 | M66: 0 | N66: 0 | O66: 0 | P66: 0 | Q66: 0 | R66: 0 | S66: 0 | T66: 0 | U66: 0 | V66: 20
A67: 2 | B67: 0 | C67: BLACKLOCK, Becky | D67: 29 | E67: 29 | F67: 0 | G67: 0 | H67: 0 | I67: 0 | J67: 0 | K67: 0 | L67: 0 | M67: 0 | N67: 0 | O67: 0 | P67: 0 | Q67: 0 | R67: 0 | S67: 0 | T67: 0 | U67: 0 | V67: 20
A68: 2 | B68: 0 | C68: HUNTER, Maria | D68: 23 | E68: 23 | F68: 0 | G68: 0 | H68: 24 | I68: 0 | J68: 0 | K68: 0 | L68: 0 | M68: 0 | N68: 0 | O68: 0 | P68: 0 | Q68: 0 | R68: 0 | S68: 0 | T68: 0 | U68: 0 | V68: 20
A69: 2 | B69: 0 | C69: RILEY, Sandra | D69: 0 | E69: 13 | F69: 0 | G69: 0 | H69: 0 | I69: 0 | J69: 0 | K69: 0 | L69: 0 | M69: 0 | N69: 0 | O69: 0 | P69: 0 | Q69: 0 | R69: 0 | S69: 0 | T69: 0 | U69: 0 | V69: 20
A70: 2 | B70: 0 | C70: STANLEY, Alexandra | D70: 24 | E70: 24 | F70: 0 | G70: 26 | H70: 0 | I70: 0 | J70: 0 | K70: 0 | L70: 0 | M70: 0 | N70: 0 | O70: 0 | P70: 0 | Q70: 0 | R70: 0 | S70: 0 | T70: 0 | U70: 0 | V70: 20
A71: 2 | B71: 2 | C71: BACKINSELL, Kitty | D71: 0 | E71: 30 | F71: 0 | G71: 0 | H71: 0 | I71: 0 | J71: 0 | K71: 0 | L71: 0 | M71: 0 | N71: 0 | O71: 0 | P71: 0 | Q71: 0 | R71: 0 | S71: 0 | T71: 0 | U71: 0 | V71: 22
A72: 3 | B72: 2 | C72: PEARSE, Phoenix | D72: 28 | E72: 28 | F72: 28 | G72: 28 | H72: 28 | I72: 0 | J72: 0 | K72: 0 | L72: 0 | M72: 0 | N72: 0 | O72: 0 | P72: 0 | Q72: 0 | R72: 0 | S72: 0 | T72: 0 | U72: 0 | V72: 32
A73: 3 | B73: 2 | C73: CHOW, Pak Ho | D73: 30 | E73: 30 | F73: 30 | G73: 30 | H73: 27 | I73: 0 | J73: 0 | K73: 0 | L73: 0 | M73: 0 | N73: 0 | O73: 0 | P73: 0 | Q73: 0 | R73: 0 | S73: 0 | T73: 0 | U73: 0 | V73: 32
A74: 3 | B74: 2 | C74: PEARSE, Gabriel | D74: 30 | E74: 30 | F74: 30 | G74: 30 | H74: 30 | I74: 0 | J74: 0 | K74: 0 | L74: 0 | M74: 0 | N74: 0 | O74: 0 | P74: 0 | Q74: 0 | R74: 0 | S74: 0 | T74: 0 | U74: 0 | V74: 32
A75: 3 | B75: 2 | C75: COWDRAY, Lawrence | D75: 30 | E75: 0 | F75: 30 | G75: 30 | H75: 0 | I75: 0 | J75: 0 | K75: 0 | L75: 0 | M75: 0 | N75: 0 | O75: 0 | P75: 0 | Q75: 0 | R75: 0 | S75: 0 | T75: 0 | U75: 0 | V75: 32
A76: 3 | B76: 2 | C76: CUTHBERT, Patrick | D76: 29 | E76: 29 | F76: 29 | G76: 29 | H76: 29 | I76: 0 | J76: 0 | K76: 0 | L76: 0 | M76: 0 | N76: 0 | O76: 0 | P76: 0 | Q76: 0 | R76: 0 | S76: 0 | T76: 0 | U76: 0 | V76: 32

Sheet SortBest
A1: POLAND, Jack | B1: 30 | C1: 30 | D1: 30 | E1: 29 | F1: 29 | G1: 0 | H1: 0 | I1: 0 | J1: 0 | K1: 0 | L1: 0 | M1: 0 | N1: 0 | O1: 0 | P1: 0 | Q1: 0 | R1: 0 | S1: 0 | T1: =SUM(B1:M1) -> 148
A2: WHITWORTH, Rab | B2: 24 | C2: 24 | D2: 23 | E2: 23 | F2: 22 | G2: 22 | H2: 22 | I2: 21 | J2: 0 | K2: 0 | L2: 0 | M2: 0 | N2: 0 | O2: 0 | P2: 0 | Q2: 0 | R2: 0 | S2: 0 | T2: =SUM(B2:M2) -> 181
A3: WATSON, Luke | B3: 27 | C3: 0 | D3: 0 | E3: 0 | F3: 0 | G3: 0 | H3: 0 | I3: 0 | J3: 0 | K3: 0 | L3: 0 | M3: 0 | N3: 0 | O3: 0 | P3: 0 | Q3: 0 | R3: 0 | S3: 0 | T3: 27
A4: CHADWICK, Oliver | B4: 30 | C4: 30 | D4: 30 | E4: 30 | F4: 30 | G4: 0 | H4: 0 | I4: 0 | J4: 0 | K4: 0 | L4: 0 | M4: 0 | N4: 0 | O4: 0 | P4: 0 | Q4: 0 | R4: 0 | S4: 0 | T4: 150
A5: BIRD, Phil | B5: 22 | C5: 21 | D5: 20 | E5: 18 | F5: 0 | G5: 0 | H5: 0 | I5: 0 | J5: 0 | K5: 0 | L5: 0 | M5: 0 | N5: 0 | O5: 0 | P5: 0 | Q5: 0 | R5: 0 | S5: 0 | T5: 81
A6: JONES, Christopher | B6: 30 | C6: 28 | D6: 0 | E6: 0 | F6: 0 | G6: 0 | H6: 0 | I6: 0 | J6: 0 | K6: 0 | L6: 0 | M6: 0 | N6: 0 | O6: 0 | P6: 0 | Q6: 0 | R6: 0 | S6: 0 | T6: 58
A7: WOODS, Sam | B7: 30 | C7: 28 | D7: 25 | E7: 25 | F7: 25 | G7: 25 | H7: 24 | I7: 24 | J7: 24 | K7: 20 | L7: 0 | M7: 0 | N7: 0 | O7: 0 | P7: 0 | Q7: 0 | R7: 0 | S7: 0 | T7: 250
A8: KENNEDY, Alan | B8: 30 | C8: 30 | D8: 29 | E8: 29 | F8: 29 | G8: 28 | H8: 28 | I8: 27 | J8: 27 | K8: 27 | L8: 27 | M8: 0 | N8: 0 | O8: 0 | P8: 0 | Q8: 0 | R8: 0 | S8: 0 | T8: 311
A9: BARHAM, Pete | B9: 26 | C9: 24 | D9: 23 | E9: 23 | F9: 23 | G9: 22 | H9: 21 | I9: 21 | J9: 21 | K9: 21 | L9: 20 | M9: 0 | N9: 0 | O9: 0 | P9: 0 | Q9: 0 | R9: 0 | S9: 0 | T9: 245
A10: POUSTIE, Mark | B10: 30 | C10: 29 | D10: 29 | E10: 28 | F10: 27 | G10: 27 | H10: 26 | I10: 26 | J10: 26 | K10: 25 | L10: 25 | M10: 25 | N10: 24 | O10: 23 | P10: 0 | Q10: 0 | R10: 0 | S10: 0 | T10: 323
A11: PEARSE, Rob | B11: 30 | C11: 30 | D11: 30 | E11: 29 | F11: 29 | G11: 29 | H11: 29 | I11: 29 | J11: 29 | K11: 28 | L11: 28 | M11: 28 | N11: 26 | O11: 0 | P11: 0 | Q11: 0 | R11: 0 | S11: 0 | T11: 348
A12: DABNER, Phil | B12: 27 | C12: 26 | D12: 26 | E12: 25 | F12: 0 | G12: 0 | H12: 0 | I12: 0 | J12: 0 | K12: 0 | L12: 0 | M12: 0 | N12: 0 | O12: 0 | P12: 0 | Q12: 0 | R12: 0 | S12: 0 | T12: 104
A13: MCALISTER, Dave | B13: 26 | C13: 25 | D13: 25 | E13: 22 | F13: 22 | G13: 22 | H13: 21 | I13: 19 | J13: 19 | K13: 18 | L13: 0 | M13: 0 | N13: 0 | O13: 0 | P13: 0 | Q13: 0 | R13: 0 | S13: 0 | T13: 219
A14: CUTHBERT, Phil | B14: 28 | C14: 27 | D14: 23 | E14: 22 | F14: 0 | G14: 0 | H14: 0 | I14: 0 | J14: 0 | K14: 0 | L14: 0 | M14: 0 | N14: 0 | O14: 0 | P14: 0 | Q14: 0 | R14: 0 | S14: 0 | T14: 100
A15: MCARDLE, Connor | B15: 28 | C15: 0 | D15: 0 | E15: 0 | F15: 0 | G15: 0 | H15: 0 | I15: 0 | J15: 0 | K15: 0 | L15: 0 | M15: 0 | N15: 0 | O15: 0 | P15: 0 | Q15: 0 | R15: 0 | S15: 0 | T15: 28
A16: BARBAT, Tony | B16: 29 | C16: 29 | D16: 28 | E16: 27 | F16: 27 | G16: 26 | H16: 26 | I16: 26 | J16: 25 | K16: 24 | L16: 24 | M16: 24 | N16: 23 | O16: 23 | P16: 0 | Q16: 0 | R16: 0 | S16: 0 | T16: 315
A17: NORTON, Steve | B17: 23 | C17: 22 | D17: 21 | E17: 20 | F17: 20 | G17: 19 | H17: 19 | I17: 0 | J17: 0 | K17: 0 | L17: 0 | M17: 0 | N17: 0 | O17: 0 | P17: 0 | Q17: 0 | R17: 0 | S17: 0 | T17: 144
A18: EVES, Scott | B18: 29 | C18: 28 | D18: 28 | E18: 28 | F18: 28 | G18: 27 | H18: 27 | I18: 27 | J18: 26 | K18: 26 | L18: 25 | M18: 0 | N18: 0 | O18: 0 | P18: 0 | Q18: 0 | R18: 0 | S18: 0 | T18: 299
A19: JONES, Mike T | B19: 29 | C19: 29 | D19: 28 | E19: 26 | F19: 25 | G19: 25 | H19: 0 | I19: 0 | J19: 0 | K19: 0 | L19: 0 | M19: 0 | N19: 0 | O19: 0 | P19: 0 | Q19: 0 | R19: 0 | S19: 0 | T19: 162
A20: STOCKER, Ken | B20: 14 | C20: 13 | D20: 11 | E20: 9 | F20: 0 | G20: 0 | H20: 0 | I20: 0 | J20: 0 | K20: 0 | L20: 0 | M20: 0 | N20: 0 | O20: 0 | P20: 0 | Q20: 0 | R20: 0 | S20: 0 | T20: 47
A21: SALES, Sean | B21: 29 | C21: 27 | D21: 26 | E21: 25 | F21: 24 | G21: 22 | H21: 20 | I21: 19 | J21: 19 | K21: 0 | L21: 0 | M21: 0 | N21: 0 | O21: 0 | P21: 0 | Q21: 0 | R21: 0 | S21: 0 | T21: 211
A22: SEAL, Brian | B22: 29 | C22: 27 | D22: 27 | E22: 26 | F22: 25 | G22: 24 | H22: 24 | I22: 21 | J22: 21 | K22: 20 | L22: 0 | M22: 0 | N22: 0 | O22: 0 | P22: 0 | Q22: 0 | R22: 0 | S22: 0 | T22: 244
A23: GIBBONS, Neil | B23: 20 | C23: 19 | D23: 17 | E23: 15 | F23: 14 | G23: 0 | H23: 0 | I23: 0 | J23: 0 | K23: 0 | L23: 0 | M23: 0 | N23: 0 | O23: 0 | P23: 0 | Q23: 0 | R23: 0 | S23: 0 | T23: 85
A24: CUTHBERT, Patrick | B24: 27 | C24: 25 | D24: 24 | E24: 23 | F24: 23 | G24: 22 | H24: 20 | I24: 0 | J24: 0 | K24: 0 | L24: 0 | M24: 0 | N24: 0 | O24: 0 | P24: 0 | Q24: 0 | R24: 0 | S24: 0 | T24: 164
A25: CONNOLLY, Patrick | B25: 21 | C25: 19 | D25: 18 | E25: 18 | F25: 17 | G25: 13 | H25: 0 | I25: 0 | J25: 0 | K25: 0 | L25: 0 | M25: 0 | N25: 0 | O25: 0 | P25: 0 | Q25: 0 | R25: 0 | S25: 0 | T25: 106
A26: DOHERTY, Mark | B26: 30 | C26: 17 | D26: 16 | E26: 15 | F26: 15 | G26: 15 | H26: 10 | I26: 0 | J26: 0 | K26: 0 | L26: 0 | M26: 0 | N26: 0 | O26: 0 | P26: 0 | Q26: 0 | R26: 0 | S26: 0 | T26: 118
A27: COLE, Steve | B27: 27 | C27: 23 | D27: 23 | E27: 22 | F27: 21 | G27: 19 | H27: 18 | I27: 18 | J27: 17 | K27: 17 | L27: 0 | M27: 0 | N27: 0 | O27: 0 | P27: 0 | Q27: 0 | R27: 0 | S27: 0 | T27: 205
A28: FEELY, Michael | B28: 16 | C28: 0 | D28: 0 | E28: 0 | F28: 0 | G28: 0 | H28: 0 | I28: 0 | J28: 0 | K28: 0 | L28: 0 | M28: 0 | N28: 0 | O28: 0 | P28: 0 | Q28: 0 | R28: 0 | S28: 0 | T28: 16
A29: FERRONI, Stephen | B29: 30 | C29: 30 | D29: 30 | E29: 30 | F29: 30 | G29: 30 | H29: 30 | I29: 30 | J29: 0 | K29: 0 | L29: 0 | M29: 0 | N29: 0 | O29: 0 | P29: 0 | Q29: 0 | R29: 0 | S29: 0 | T29: 240
A30: HAMPSHIRE, William | B30: 28 | C30: 26 | D30: 0 | E30: 0 | F30: 0 | G30: 0 | H30: 0 | I30: 0 | J30: 0 | K30: 0 | L30: 0 | M30: 0 | N30: 0 | O30: 0 | P30: 0 | Q30: 0 | R30: 0 | S30: 0 | T30: 54
A31: GILLIES, George | B31: 30 | C31: 30 | D31: 30 | E31: 30 | F31: 30 | G31: 30 | H31: 29 | I31: 29 | J31: 29 | K31: 29 | L31: 28 | M31: 28 | N31: 27 | O31: 27 | P31: 24 | Q31: 0 | R31: 0 | S31: 0 | T31: 352
A32: BOWERS, Chris | B32: 29 | C32: 29 | D32: 28 | E32: 27 | F32: 26 | G32: 25 | H32: 24 | I32: 22 | J32: 22 | K32: 22 | L32: 0 | M32: 0 | N32: 0 | O32: 0 | P32: 0 | Q32: 0 | R32: 0 | S32: 0 | T32: 254
A33: ROBSON, Michael | B33: 26 | C33: 25 | D33: 23 | E33: 0 | F33: 0 | G33: 0 | H33: 0 | I33: 0 | J33: 0 | K33: 0 | L33: 0 | M33: 0 | N33: 0 | O33: 0 | P33: 0 | Q33: 0 | R33: 0 | S33: 0 | T33: 74
A34: MCARDLE, Derek | B34: 23 | C34: 21 | D34: 20 | E34: 20 | F34: 20 | G34: 17 | H34: 15 | I34: 13 | J34: 0 | K34: 0 | L34: 0 | M34: 0 | N34: 0 | O34: 0 | P34: 0 | Q34: 0 | R34: 0 | S34: 0 | T34: 149
A35: ELLISON, John | B35: 28 | C35: 27 | D35: 0 | E35: 0 | F35: 0 | G35: 0 | H35: 0 | I35: 0 | J35: 0 | K35: 0 | L35: 0 | M35: 0 | N35: 0 | O35: 0 | P35: 0 | Q35: 0 | R35: 0 | S35: 0 | T35: 55
A36: WYNNE, Mark | B36: 29 | C36: 28 | D36: 0 | E36: 0 | F36: 0 | G36: 0 | H36: 0 | I36: 0 | J36: 0 | K36: 0 | L36: 0 | M36: 0 | N36: 0 | O36: 0 | P36: 0 | Q36: 0 | R36: 0 | S36: 0 | T36: 57
A37: GRIFFITHS, Paul | B37: 25 | C37: 21 | D37: 21 | E37: 16 | F37: 0 | G37: 0 | H37: 0 | I37: 0 | J37: 0 | K37: 0 | L37: 0 | M37: 0 | N37: 0 | O37: 0 | P37: 0 | Q37: 0 | R37: 0 | S37: 0 | T37: 83
A38: MCARDLE, Pete | B38: 18 | C38: 17 | D38: 14 | E38: 12 | F38: 11 | G38: 0 | H38: 0 | I38: 0 | J38: 0 | K38: 0 | L38: 0 | M38: 0 | N38: 0 | O38: 0 | P38: 0 | Q38: 0 | R38: 0 | S38: 0 | T38: 72
A39: HOARE, Daniel | B39: 21 | C39: 19 | D39: 18 | E39: 0 | F39: 0 | G39: 0 | H39: 0 | I39: 0 | J39: 0 | K39: 0 | L39: 0 | M39: 0 | N39: 0 | O39: 0 | P39: 0 | Q39: 0 | R39: 0 | S39: 0 | T39: 58
A40: LESLIE, Steven | B40: 29 | C40: 29 | D40: 28 | E40: 27 | F40: 26 | G40: 26 | H40: 0 | I40: 0 | J40: 0 | K40: 0 | L40: 0 | M40: 0 | N40: 0 | O40: 0 | P40: 0 | Q40: 0 | R40: 0 | S40: 0 | T40: 165
A41: HOLMES, Tony | B41: 19 | C41: 18 | D41: 16 | E41: 16 | F41: 16 | G41: 12 | H41: 11 | I41: 0 | J41: 0 | K41: 0 | L41: 0 | M41: 0 | N41: 0 | O41: 0 | P41: 0 | Q41: 0 | R41: 0 | S41: 0 | T41: 108
A42: BACKINSELL, Jim | B42: 22 | C42: 22 | D42: 20 | E42: 19 | F42: 17 | G42: 16 | H42: 15 | I42: 0 | J42: 0 | K42: 0 | L42: 0 | M42: 0 | N42: 0 | O42: 0 | P42: 0 | Q42: 0 | R42: 0 | S42: 0 | T42: 131
A43: HUGHES, Gareth | B43: 17 | C43: 13 | D43: 12 | E43: 0 | F43: 0 | G43: 0 | H43: 0 | I43: 0 | J43: 0 | K43: 0 | L43: 0 | M43: 0 | N43: 0 | O43: 0 | P43: 0 | Q43: 0 | R43: 0 | S43: 0 | T43: 42
A44: PERRY, Robert | B44: 28 | C44: 27 | D44: 16 | E44: 15 | F44: 14 | G44: 13 | H44: 11 | I44: 10 | J44: 0 | K44: 0 | L44: 0 | M44: 0 | N44: 0 | O44: 0 | P44: 0 | Q44: 0 | R44: 0 | S44: 0 | T44: 134
A45: WADE, David | B45: 21 | C45: 18 | D45: 16 | E45: 14 | F45: 0 | G45: 0 | H45: 0 | I45: 0 | J45: 0 | K45: 0 | L45: 0 | M45: 0 | N45: 0 | O45: 0 | P45: 0 | Q45: 0 | R45: 0 | S45: 0 | T45: 69
A46: RAE, Nick | B46: 15 | C46: 14 | D46: 13 | E46: 12 | F46: 12 | G46: 10 | H46: 10 | I46: 9 | J46: 0 | K46: 0 | L46: 0 | M46: 0 | N46: 0 | O46: 0 | P46: 0 | Q46: 0 | R46: 0 | S46: 0 | T46: 95
A47: GORMAN, Louis | B47: 29 | C47: 29 | D47: 28 | E47: 28 | F47: 0 | G47: 0 | H47: 0 | I47: 0 | J47: 0 | K47: 0 | L47: 0 | M47: 0 | N47: 0 | O47: 0 | P47: 0 | Q47: 0 | R47: 0 | S47: 0 | T47: 114
A48: WARREN, Dominic | B48: 28 | C48: 28 | D48: 26 | E48: 25 | F48: 23 | G48: 23 | H48: 20 | I48: 0 | J48: 0 | K48: 0 | L48: 0 | M48: 0 | N48: 0 | O48: 0 | P48: 0 | Q48: 0 | R48: 0 | S48: 0 | T48: 173
A49: SUMMERFIELD, Leon | B49: 18 | C49: 15 | D49: 14 | E49: 0 | F49: 0 | G49: 0 | H49: 0 | I49: 0 | J49: 0 | K49: 0 | L49: 0 | M49: 0 | N49: 0 | O49: 0 | P49: 0 | Q49: 0 | R49: 0 | S49: 0 | T49: 47
A50: ROUGHLEY, Andrew | B50: 24 | C50: 24 | D50: 24 | E50: 0 | F50: 0 | G50: 0 | H50: 0 | I50: 0 | J50: 0 | K50: 0 | L50: 0 | M50: 0 | N50: 0 | O50: 0 | P50: 0 | Q50: 0 | R50: 0 | S50: 0 | T50: 72
A51: SAUNDERS, Paul | B51: 22 | C51: 19 | D51: 0 | E51: 0 | F51: 0 | G51: 0 | H51: 0 | I51: 0 | J51: 0 | K51: 0 | L51: 0 | M51: 0 | N51: 0 | O51: 0 | P51: 0 | Q51: 0 | R51: 0 | S51: 0 | T51: 41
A52: JOHNSTONE, Paul | B52: 23 | C52: 0 | D52: 0 | E52: 0 | F52: 0 | G52: 0 | H52: 0 | I52: 0 | J52: 0 | K52: 0 | L52: 0 | M52: 0 | N52: 0 | O52: 0 | P52: 0 | Q52: 0 | R52: 0 | S52: 0 | T52: 23
A53: ANDERSON, Daniel | B53: 30 | C53: 27 | D53: 0 | E53: 0 | F53: 0 | G53: 0 | H53: 0 | I53: 0 | J53: 0 | K53: 0 | L53: 0 | M53: 0 | N53: 0 | O53: 0 | P53: 0 | Q53: 0 | R53: 0 | S53: 0 | T53: 57
A54: DAVIES, Nicci | B54: 19 | C54: 18 | D54: 16 | E54: 13 | F54: 13 | G54: 13 | H54: 0 | I54: 0 | J54: 0 | K54: 0 | L54: 0 | M54: 0 | N54: 0 | O54: 0 | P54: 0 | Q54: 0 | R54: 0 | S54: 0 | T54: 92
A55: CUCKSEY, Lesley-Anne | B55: 25 | C55: 25 | D55: 23 | E55: 22 | F55: 21 | G55: 21 | H55: 19 | I55: 19 | J55: 19 | K55: 19 | L55: 18 | M55: 17 | N55: 17 | O55: 17 | P55: 0 | Q55: 0 | R55: 0 | S55: 0 | T55: 248
A56: OPARA, Elaine | B56: 30 | C56: 29 | D56: 29 | E56: 28 | F56: 28 | G56: 28 | H56: 28 | I56: 27 | J56: 27 | K56: 26 | L56: 0 | M56: 0 | N56: 0 | O56: 0 | P56: 0 | Q56: 0 | R56: 0 | S56: 0 | T56: 280
A57: CUTHBERT, Caet | B57: 28 | C57: 22 | D57: 21 | E57: 17 | F57: 17 | G57: 17 | H57: 16 | I57: 15 | J57: 15 | K57: 14 | L57: 14 | M57: 0 | N57: 0 | O57: 0 | P57: 0 | Q57: 0 | R57: 0 | S57: 0 | T57: 196
A58: MCCONNELL, Vicky | B58: 30 | C58: 30 | D58: 29 | E58: 28 | F58: 27 | G58: 27 | H58: 27 | I58: 27 | J58: 23 | K58: 0 | L58: 0 | M58: 0 | N58: 0 | O58: 0 | P58: 0 | Q58: 0 | R58: 0 | S58: 0 | T58: 248
A59: HUNTER, Maria | B59: 24 | C59: 23 | D59: 22 | E59: 22 | F59: 21 | G59: 21 | H59: 21 | I59: 20 | J59: 19 | K59: 0 | L59: 0 | M59: 0 | N59: 0 | O59: 0 | P59: 0 | Q59: 0 | R59: 0 | S59: 0 | T59: 193
A60: BACKINSELL, Kitty | B60: 15 | C60: 0 | D60: 0 | E60: 0 | F60: 0 | G60: 0 | H60: 0 | I60: 0 | J60: 0 | K60: 0 | L60: 0 | M60: 0 | N60: 0 | O60: 0 | P60: 0 | Q60: 0 | R60: 0 | S60: 0 | T60: 15
A61: BARBAT, Julie | B61: 25 | C61: 24 | D61: 24 | E61: 23 | F61: 22 | G61: 20 | H61: 20 | I61: 0 | J61: 0 | K61: 0 | L61: 0 | M61: 0 | N61: 0 | O61: 0 | P61: 0 | Q61: 0 | R61: 0 | S61: 0 | T61: 158
A62: ELLISON, Sandra | B62: 12 | C62: 8 | D62: 0 | E62: 0 | F62: 0 | G62: 0 | H62: 0 | I62: 0 | J62: 0 | K62: 0 | L62: 0 | M62: 0 | N62: 0 | O62: 0 | P62: 0 | Q62: 0 | R62: 0 | S62: 0 | T62: 20
A63: BROWN, Allison | B63: 26 | C63: 25 | D63: 0 | E63: 0 | F63: 0 | G63: 0 | H63: 0 | I63: 0 | J63: 0 | K63: 0 | L63: 0 | M63: 0 | N63: 0 | O63: 0 | P63: 0 | Q63: 0 | R63: 0 | S63: 0 | T63: 51
A64: WYNTER, Serena | B64: 20 | C64: 10 | D64: 10 | E64: 0 | F64: 0 | G64: 0 | H64: 0 | I64: 0 | J64: 0 | K64: 0 | L64: 0 | M64: 0 | N64: 0 | O64: 0 | P64: 0 | Q64: 0 | R64: 0 | S64: 0 | T64: 40
A65: STANLEY, Alexandra | B65: 25 | C65: 24 | D65: 22 | E65: 21 | F65: 21 | G65: 0 | H65: 0 | I65: 0 | J65: 0 | K65: 0 | L65: 0 | M65: 0 | N65: 0 | O65: 0 | P65: 0 | Q65: 0 | R65: 0 | S65: 0 | T65: 113
A66: CUTHBERT, Isabella | B66: 18 | C66: 0 | D66: 0 | E66: 0 | F66: 0 | G66: 0 | H66: 0 | I66: 0 | J66: 0 | K66: 0 | L66: 0 | M66: 0 | N66: 0 | O66: 0 | P66: 0 | Q66: 0 | R66: 0 | S66: 0 | T66: =SUM(B66:M66) -> 18
A67: EDWARDS, Jane | B67: 21 | C67: 15 | D67: 15 | E67: 15 | F67: 12 | G67: 9 | H67: 0 | I67: 0 | J67: 0 | K67: 0 | L67: 0 | M67: 0 | N67: 0 | O67: 0 | P67: 0 | Q67: 0 | R67: 0 | S67: 0 | T67: 87
A68: CLARKE, Isabella | B68: 20 | C68: 0 | D68: 0 | E68: 0 | F68: 0 | G68: 0 | H68: 0 | I68: 0 | J68: 0 | K68: 0 | L68: 0 | M68: 0 | N68: 0 | O68: 0 | P68: 0 | Q68: 0 | R68: 0 | S68: 0 | T68: 20
A69: LAMONT, Sharon | B69: 29 | C69: 24 | D69: 23 | E69: 23 | F69: 22 | G69: 22 | H69: 21 | I69: 19 | J69: 18 | K69: 18 | L69: 18 | M69: 17 | N69: 17 | O69: 16 | P69: 16 | Q69: 16 | R69: 16 | S69: 0 | T69: 254
A70: CRISP, Zoe | B70: 27 | C70: 24 | D70: 24 | E70: 23 | F70: 22 | G70: 21 | H70: 20 | I70: 20 | J70: 20 | K70: 20 | L70: 19 | M70: 19 | N70: 0 | O70: 0 | P70: 0 | Q70: 0 | R70: 0 | S70: 0 | T70: 259
A71: COWDRAY, Kat | B71: 29 | C71: 29 | D71: 28 | E71: 28 | F71: 27 | G71: 27 | H71: 26 | I71: 26 | J71: 26 | K71: 26 | L71: 0 | M71: 0 | N71: 0 | O71: 0 | P71: 0 | Q71: 0 | R71: 0 | S71: 0 | T71: 272
A72: DABNER, Erin | B72: 27 | C72: 27 | D72: 26 | E72: 0 | F72: 0 | G72: 0 | H72: 0 | I72: 0 | J72: 0 | K72: 0 | L72: 0 | M72: 0 | N72: 0 | O72: 0 | P72: 0 | Q72: 0 | R72: 0 | S72: 0 | T72: 80
A73: ANDREWS, Katherine | B73: 26 | C73: 25 | D73: 25 | E73: 23 | F73: 23 | G73: 23 | H73: 22 | I73: 21 | J73: 21 | K73: 20 | L73: 0 | M73: 0 | N73: 0 | O73: 0 | P73: 0 | Q73: 0 | R73: 0 | S73: 0 | T73: 229
A74: THOMPSON, Joniece | B74: 24 | C74: 24 | D74: 24 | E74: 23 | F74: 0 | G74: 0 | H74: 0 | I74: 0 | J74: 0 | K74: 0 | L74: 0 | M74: 0 | N74: 0 | O74: 0 | P74: 0 | Q74: 0 | R74: 0 | S74: 0 | T74: 95
A75: MAGEE, Mary | B75: 16 | C75: 11 | D75: 11 | E75: 0 | F75: 0 | G75: 0 | H75: 0 | I75: 0 | J75: 0 | K75: 0 | L75: 0 | M75: 0 | N75: 0 | O75: 0 | P75: 0 | Q75: 0 | R75: 0 | S75: 0 | T75: 38
A76: BLACKLOCK, Becky | B76: 30 | C76: 30 | D76: 30 | E76: 30 | F76: 30 | G76: 30 | H76: 29 | I76: 29 | J76: 29 | K76: 28 | L76: 28 | M76: 0 | N76: 0 | O76: 0 | P76: 0 | Q76: 0 | R76: 0 | S76: 0 | T76: 323
A77: ALTY, Michele | B77: 30 | C77: 27 | D77: 26 | E77: 26 | F77: 26 | G77: 25 | H77: 25 | I77: 25 | J77: 25 | K77: 24 | L77: 0 | M77: 0 | N77: 0 | O77: 0 | P77: 0 | Q77: 0 | R77: 0 | S77: 0 | T77: 259
A78: CHAPMAN, Nicci | B78: 11 | C78: 0 | D78: 0 | E78: 0 | F78: 0 | G78: 0 | H78: 0 | I78: 0 | J78: 0 | K78: 0 | L78: 0 | M78: 0 | N78: 0 | O78: 0 | P78: 0 | Q78: 0 | R78: 0 | S78: 0 | T78: 11
A79: REES, Mary | B79: 23 | C79: 20 | D79: 18 | E79: 18 | F79: 18 | G79: 17 | H79: 17 | I79: 14 | J79: 10 | K79: 0 | L79: 0 | M79: 0 | N79: 0 | O79: 0 | P79: 0 | Q79: 0 | R79: 0 | S79: 0 | T79: 155
A80: RILEY, Sandra | B80: 18 | C80: 16 | D80: 14 | E80: 12 | F80: 0 | G80: 0 | H80: 0 | I80: 0 | J80: 0 | K80: 0 | L80: 0 | M80: 0 | N80: 0 | O80: 0 | P80: 0 | Q80: 0 | R80: 0 | S80: 0 | T80: 60
A81: KENNY, Anna | B81: 30 | C81: 29 | D81: 29 | E81: 29 | F81: 29 | G81: 29 | H81: 28 | I81: 28 | J81: 28 | K81: 28 | L81: 27 | M81: 0 | N81: 0 | O81: 0 | P81: 0 | Q81: 0 | R81: 0 | S81: 0 | T81: 314
A82: NICHOLSON, Chloe | B82: 30 | C82: 29 | D82: 0 | E82: 0 | F82: 0 | G82: 0 | H82: 0 | I82: 0 | J82: 0 | K82: 0 | L82: 0 | M82: 0 | N82: 0 | O82: 0 | P82: 0 | Q82: 0 | R82: 0 | S82: 0 | T82: 59
A83: KREMLING, Paulena | B83: 30 | C83: 30 | D83: 30 | E83: 30 | F83: 0 | G83: 0 | H83: 0 | I83: 0 | J83: 0 | K83: 0 | L83: 0 | M83: 0 | N83: 0 | O83: 0 | P83: 0 | Q83: 0 | R83: 0 | S83: 0 | T83: 120
A84: MCARD, Jan | B84: 30 | C84: 29 | D84: 28 | E84: 26 | F84: 26 | G84: 26 | H84: 25 | I84: 25 | J84: 24 | K84: 24 | L84: 24 | M84: 0 | N84: 0 | O84: 0 | P84: 0 | Q84: 0 | R84: 0 | S84: 0 | T84: 287
A85: STANSFIELD, Helen-Anne | B85: 29 | C85: 28 | D85: 27 | E85: 26 | F85: 23 | G85: 23 | H85: 19 | I85: 0 | J85: 0 | K85: 0 | L85: 0 | M85: 0 | N85: 0 | O85: 0 | P85: 0 | Q85: 0 | R85: 0 | S85: 0 | T85: 175
A86: REYNOLDS, Sue | B86: 28 | C86: 27 | D86: 27 | E86: 26 | F86: 25 | G86: 25 | H86: 25 | I86: 24 | J86: 24 | K86: 23 | L86: 22 | M86: 22 | N86: 22 | O86: 22 | P86: 0 | Q86: 0 | R86: 0 | S86: 0 | T86: 298
